bitfinex/quotes_SOLUSD_20250919
["timestamp","ask_amount","ask_price","bid_price","bid_amount"]
[1758292911083,3.48675374,241.74,241.72,2.39497034]
[1758292911279,2.77675374,241.73,241.72,2.39497034]
[1758292914504,2.77675374,241.73,241.72,3.36929348]
[1758292914691,0.71,241.78,241.73,0.28432314]
[1758292914897,3.48711446,241.77,241.76,2.39497034]
[1758292919509,2.77711446,241.77,241.76,2.39497034]
[1758292920617,3.46711446,241.77,241.76,2.39497034]
[1758292922012,3.46711446,241.77,241.75,2.39497034]
[1758292922217,3.46711446,241.76,241.75,2.39497034]
[1758292922710,3.46711446,241.76,241.74,31.9]
[1758292923023,3.46711446,241.76,241.73,2.67929348]
[1758292923024,3.46711446,241.75,241.69,12.42107442]
[1758292923220,2.77711446,241.74,241.72,2.39497034]
[1758292923510,0.69,241.74,241.73,31.9]
[1758292923714,3.47113465,241.74,241.73,31.9]
[1758292925513,2.78113465,241.74,241.73,31.9]
[1758292926905,2.78113465,241.74,241.73,32.90432314]
[1758292927101,2.78113465,241.74,241.73,37.04117003]
[1758292927497,2.78113465,241.74,241.73,50.63676404]
[1758292927693,3.46760529,241.82,241.75,13.73775558]
[1758292928002,0.69,241.83,241.8,2.39497034]
[1758292928003,2.78197187,241.81,241.8,2.39497034]
[1758292928206,2.78197187,241.81,241.8,34.29497034]
[1758292928798,3.47197187,241.81,241.8,34.29497034]
[1758292929208,0.69,241.81,241.8,34.29497034]
[1758292929423,3.47114396,241.81,241.8,34.29497034]
[1758292930026,2.78114396,241.81,241.8,34.29497034]
[1758292930814,3.47114396,241.81,241.8,34.29497034]
[1758292931027,2.78114396,241.81,241.8,34.29497034]
[1758292934529,2.78114396,241.81,241.8,35.29929348]
[1758292935430,2.78114396,241.81,241.8,34.57929348]
[1758292935735,2.78114396,241.81,241.8,38.71494277]
[1758292936032,4.83719998,241.87,241.81,0.28432314]
[1758292936233,2.77882902,241.86,241.84,2.39497034]
[1758292936405,0.69,241.86,241.85,31.88]
[1758292936718,3.46886765,241.86,241.85,31.88]
[1758292938305,2.77886765,241.86,241.85,31.88]
[1758292940843,3.46886765,241.86,241.84,31.88]
[1758292941125,3.46886765,241.85,241.84,31.88]
[1758292941729,0.69,241.85,241.84,31.88]
[1758292941906,3.46886765,241.85,241.84,31.88]
[1758292942108,2.77886765,241.86,241.84,34.27497034]
[1758292942416,2.77886765,241.86,241.85,2.39497034]
[1758292943123,6.92606763,241.87,241.85,2.39497034]
[1758292943315,6.92606763,241.87,241.86,31.88]
[1758292943732,4.83719998,241.87,241.86,31.88]
[1758292943932,7.61606763,241.87,241.86,34.27497034]
[1758292944314,4.83719998,241.87,241.86,34.27497034]
[1758292946805,0.69,241.87,241.86,34.27497034]
[1758292947219,0.69,241.87,241.86,31.88]
[1758292949537,2.77886765,241.88,241.86,31.88]
[1758292949713,3.45886765,241.88,241.86,31.88]
[1758292949914,0.68,241.87,241.86,31.88]
[1758292951023,0.68,241.87,241.84,2.39497034]
[1758292951240,0.68,241.86,241.85,31.88]
[1758292951537,0.68,241.86,238.57,45.78702527]
[1758292951538,0.68,241.86,241.78,0.66]
[1758292951738,0.68,241.86,241.76,0.66]
[1758292951948,2.77886765,241.85,241.79,2.39497034]
[1758292952134,2.77886765,241.85,241.8,31.88]
[1758292952316,0.68,241.84,241.8,31.88]
[1758292952519,0.68,241.83,241.8,31.88]
[1758292952742,2.77886765,241.85,241.8,31.88]
[1758292952937,0.68,241.82,241.8,31.88]
[1758292953744,0.68,241.81,241.78,2.39497034]
[1758292954052,0.68,241.81,241.79,31.88]
[1758292955745,2.77886765,241.83,241.79,31.88]
[1758292956152,0.68,241.82,241.79,31.88]
[1758292956357,0.68,241.82,241.79,34.27497034]
[1758292956743,2.77886765,241.83,241.79,34.27497034]
[1758292956929,0.68,241.82,241.79,2.39497034]
[1758292957134,0.68,241.81,241.8,31.88]
[1758292957331,0.68,241.81,241.7,12.41953179]
[1758292957530,0.68,241.8,241.73,2.39497034]
[1758292957735,0.68,241.79,241.73,2.39497034]
[1758292957952,0.68,241.78,241.74,31.88]
[1758292958246,0.68,241.77,241.74,31.86]
[1758292958548,0.68,241.76,241.74,31.86]
[1758292959145,2.77886765,241.77,241.74,31.86]
[1758292959345,0.68,241.76,241.74,31.86]
[1758292959738,2.77886765,241.78,241.74,31.86]
[1758292959957,2.77886765,241.77,241.74,31.86]
[1758292960133,7.37886765,241.77,241.74,31.86]
[1758292960324,8.05886765,241.77,241.74,31.86]
[1758292960529,2.77886765,241.76,241.74,31.86]
[1758292960723,5.28,241.77,241.74,31.86]
[1758292960937,8.05886765,241.77,241.74,31.86]
[1758292961146,2.77886765,241.76,241.74,31.86]
[1758292961447,5.28,241.77,241.74,31.86]
[1758292961650,8.05886765,241.77,241.74,31.86]
[1758292961829,2.77886765,241.76,241.74,31.86]
[1758292962028,3.45886765,241.76,241.74,31.86]
[1758292962230,0.68,241.76,241.74,31.86]
[1758292962733,4.6,241.77,241.74,31.86]
[1758292963066,0.68,241.76,241.74,31.86]
[1758292963350,3.45886765,241.76,241.74,31.86]
[1758292963866,0.68,241.76,241.74,31.86]
[1758292964032,7.37886765,241.77,241.74,34.25497034]
[1758292964236,2.77886765,241.76,241.75,0.66]
[1758292964537,26.0,241.81,241.76,0.66]
[1758292964850,2.7672537,241.8,241.78,2.39497034]
[1758292965047,3.4472537,241.82,241.78,2.39497034]
[1758292965244,26.68,241.81,241.74,2.39497034]
[1758292965433,3.4472537,241.8,241.75,31.88]
[1758292965632,3.4472537,241.79,241.75,31.88]
[1758292965852,0.68,241.78,241.75,31.88]
[1758292966357,3.4472537,241.8,241.75,31.88]
[1758292966543,0.68,241.79,241.75,31.88]
[1758292967260,3.4472537,241.79,241.75,31.88]
[1758292967432,0.68,241.79,241.73,0.66]
[1758292967640,3.4472537,241.79,241.74,33.41308027]
[1758292967958,0.68,241.78,241.74,33.41308027]
[1758292968172,0.68,241.78,241.71,3.10333853]
[1758292968345,0.68,241.78,241.74,31.88]
[1758292968543,2.7672537,241.79,241.74,31.88]
[1758292968860,0.68,241.77,241.73,31.88]
[1758292969264,0.68,241.77,241.72,1.53308027]
[1758292969471,0.68,241.77,241.73,31.88]
[1758292970165,2.7672537,241.79,241.74,0.66]
[1758292970370,2.7672537,241.79,241.73,31.88]
[1758292970670,0.68,241.78,241.73,31.88]
[1758292970862,2.7672537,241.79,241.73,31.88]
[1758292971076,0.68,241.78,241.73,31.88]
[1758292971253,0.68,241.78,241.73,32.54]
[1758292973379,0.68,241.77,241.73,32.54]
[1758292973548,0.68,241.77,241.73,31.88]
[1758292974679,2.7672537,241.78,241.73,32.54]
[1758292974870,0.68,241.78,241.73,32.54]
[1758292975064,0.68,241.77,241.73,34.07308027]
[1758292975254,2.5,241.78,241.73,34.07308027]
[1758292975572,2.5,241.78,241.74,0.68]
[1758292975763,2.5,241.78,241.75,0.68]
[1758292975969,2.7672537,241.79,241.76,0.68]
[1758292976277,2.7672537,241.79,241.75,1.53308027]
[1758292976655,2.7672537,241.79,241.75,2.21308027]
[1758292976877,3.4872537,241.79,241.75,2.21308027]
[1758292977651,2.7672537,241.79,241.75,2.21308027]
[1758292977852,2.7672537,241.79,241.76,0.68]
[1758292978284,2.7672537,241.79,241.75,1.53308027]
[1758292978490,2.7672537,241.79,241.77,1.53308027]
[1758292978782,3.47642995,241.84,241.77,1.53308027]
[1758292978783,2.7672537,241.82,241.78,0.67]
[1758292978963,2.7672537,241.83,241.78,0.67]
[1758292979279,3.4372537,241.82,241.78,0.67]
[1758292979584,26.67,241.84,241.78,0.67]
[1758292979873,2.7672537,241.83,241.78,0.67]
[1758292980048,26.67,241.84,241.78,0.67]
[1758292980049,2.7672537,241.82,241.78,0.67]
[1758292980251,0.67,241.82,241.77,33.39308027]
[1758292980450,3.4372537,241.82,241.77,33.39308027]
[1758292980669,3.17,241.82,241.77,34.06308027]
[1758292980869,5.9372537,241.82,241.77,34.06308027]
[1758292981071,3.17,241.82,241.77,34.06308027]
[1758292981254,5.9372537,241.82,241.77,34.06308027]
[1758292981454,3.17,241.82,241.77,34.06308027]
[1758292981676,5.9372537,241.82,241.77,34.06308027]
[1758292981872,3.17,241.82,241.77,34.06308027]
[1758292982063,5.9372537,241.82,241.77,34.06308027]
[1758292982263,3.17,241.82,241.77,34.06308027]
[1758292982464,5.9372537,241.82,241.77,34.06308027]
[1758292983985,5.9372537,241.82,241.78,0.67]
[1758292984161,5.2672537,241.82,241.78,0.67]
[1758292984671,5.9372537,241.82,241.78,0.67]
[1758292985090,2.7672537,241.81,241.77,33.39308027]
[1758292985282,2.7672537,241.81,241.77,32.53]
[1758292985589,2.7672537,241.81,241.77,34.06308027]
[1758292985763,3.4372537,241.81,241.77,34.06308027]
[1758292986182,0.67,241.8,241.74,0.28432314]
[1758292986389,2.7672537,241.79,241.74,31.86]
[1758292986571,0.67,241.78,241.73,1.53308027]
[1758292986768,0.67,241.77,241.72,32.53]
[1758292986978,0.67,241.76,241.72,31.86]
[1758292987378,0.67,241.76,241.71,3.69209566]
[1758292987682,0.67,241.76,241.72,31.86]
[1758292988188,0.67,241.75,241.71,2.15901539]
[1758292988395,0.67,241.75,241.71,34.01901539]
[1758292989093,0.67,241.75,241.71,34.68901539]
[1758292989297,0.67,241.75,241.71,34.01901539]
[1758292989666,2.7672537,241.76,241.71,34.68901539]
[1758292989985,0.67,241.76,241.71,34.68901539]
[1758292990167,3.4372537,241.76,241.71,34.68901539]
[1758292990368,0.67,241.75,241.71,34.01901539]
[1758292990564,2.7672537,241.76,241.71,34.01901539]
[1758292990897,0.67,241.76,241.71,34.01901539]
[1758292991069,2.7672537,241.75,241.72,0.67]
[1758292991268,3.4372537,241.77,241.72,0.67]
[1758292991495,3.4372537,241.76,241.71,35.55209566]
[1758292991679,2.7672537,241.75,241.71,36.22209566]
[1758292992500,2.7672537,241.74,241.71,36.22209566]
[1758292992670,2.7672537,241.75,241.71,36.22209566]
[1758292992869,0.67,241.76,241.71,36.22209566]
[1758292992870,2.7672537,241.74,241.71,36.22209566]
[1758292993084,2.7672537,241.73,241.72,2.20308027]
[1758292993294,2.5,241.76,241.72,1.53308027]
[1758292993589,2.7672537,241.75,241.73,0.67]
[1758292993894,2.7672537,241.75,241.74,1.53308027]
[1758292994096,2.7672537,241.78,241.74,0.67]
[1758292994298,2.7672537,241.77,241.74,2.20308027]
[1758292994466,2.7672537,241.76,241.74,2.20308027]
[1758292994666,2.7672537,241.75,241.74,2.48740341]
[1758292994866,2.7672537,241.78,241.74,2.48740341]
[1758292995081,2.7672537,241.77,241.74,2.48740341]
[1758292995289,2.7672537,241.76,241.74,2.48740341]
[1758292995499,2.7672537,241.75,241.74,0.95432314]
[1758292995693,2.7672537,241.75,241.74,1.81740341]
[1758292996071,2.7672537,241.75,241.74,2.48740341]
[1758292996274,2.7672537,241.75,241.74,1.81740341]
[1758292996704,2.7672537,241.75,241.74,2.48740341]
[1758292997568,2.7672537,241.75,241.74,1.81740341]
[1758292997990,2.7672537,241.75,241.74,0.28432314]
[1758292998175,2.7672537,241.75,241.74,1.81740341]
[1758292998589,2.7672537,241.75,241.74,16.08299742]
[1758292999599,2.7672537,241.75,241.74,15.41299742]
[1758292999978,2.7672537,241.75,241.74,16.08299742]
[1758293000177,0.67,241.8,241.75,13.87991715]
[1758293000384,0.67,241.8,241.76,1.53308027]
[1758293000385,2.77653106,241.79,241.76,1.53308027]
[1758293000581,2.77653106,241.78,241.76,1.53308027]
[1758293000791,2.77653106,241.77,241.76,0.28432314]
[1758293001187,3.44653106,241.77,241.76,0.28432314]
[1758293002075,2.77653106,241.77,241.76,0.28432314]
[1758293003099,2.77653106,241.77,241.76,0.95432314]
[1758293003304,2.77653106,241.77,241.76,0.28432314]
[1758293005107,2.77653106,241.77,241.76,0.95432314]
[1758293005486,2.77653106,241.77,241.76,1.81740341]
[1758293006205,3.49653106,241.77,241.75,31.86]
[1758293006407,3.49653106,241.76,241.74,1.53308027]
[1758293006709,0.72,241.76,241.75,31.84]
[1758293006913,3.49716073,241.76,241.75,31.84]
[1758293009302,3.49716073,241.76,241.74,31.84]
[1758293009613,3.49716073,241.75,241.74,31.84]
[1758293010786,3.49716073,241.75,241.73,32.12432314]
[1758293011109,2.77716073,241.74,241.73,32.12432314]
[1758293012932,3.49716073,241.74,241.71,61.532256]
[1758293013094,2.77716073,241.73,241.71,61.532256]
[1758293013296,0.72,241.74,241.71,61.532256]
[1758293013510,2.77736473,241.73,241.71,61.532256]
[1758293013694,0.72,241.73,241.71,61.532256]
[1758293014625,2.77731512,241.72,241.71,61.81657914]
[1758293016220,2.77731512,241.72,241.71,60.28349887]
[1758293016514,2.77731512,241.72,241.71,28.44349887]
[1758293016818,3.49731512,241.72,241.71,2.15917573]
[1758293016990,3.49731512,241.72,241.67,1.67524184]
[1758293017187,2.77731512,241.71,241.69,1.53308027]
[1758293017412,3.47642995,241.75,241.69,1.53308027]
[1758293017413,2.77731512,241.7,241.69,1.53308027]
[1758293018927,2.77731512,241.7,241.68,3.6927906]
[1758293019093,2.77731512,241.69,241.68,3.97711374]
[1758293019418,0.72,241.71,241.68,35.81711374]
[1758293019586,2.77478716,241.7,241.68,35.81711374]
[1758293019787,0.72,241.7,241.68,34.28403347]
[1758293020009,0.72,241.7,241.68,35.81711374]
[1758293020207,1.53308027,241.74,241.68,35.81711374]
[1758293020398,5.02745317,241.73,241.68,34.28403347]
[1758293020599,3.4943729,241.72,241.68,32.12432314]
[1758293020820,3.4943729,241.71,241.68,32.12432314]
[1758293021003,3.4943729,241.7,241.68,32.12432314]
[1758293021204,0.72,241.7,241.68,32.12432314]
[1758293022068,0.72,241.69,241.68,31.84]
[1758293022195,0.72,241.69,241.66,2.35976273]
[1758293022196,3.49384927,241.69,241.66,34.19976273]
[1758293022536,3.47642995,241.75,241.66,34.19976273]
[1758293022537,0.72,241.68,241.66,34.19976273]
[1758293022699,3.47642995,241.74,241.66,0.2]
[1758293022893,2.25308027,241.67,241.65,0.2]
[1758293023116,4.30621925,241.66,241.65,0.2]
[1758293023511,5.02621925,241.66,241.65,0.2]
[1758293023708,3.49313898,241.66,241.65,0.2]
[1758293023917,5.02621925,241.66,241.65,0.2]
[1758293025918,5.73201002,241.66,241.65,0.2]
[1758293027819,3.49313898,241.66,241.65,0.2]
[1758293028412,2.95887104,241.66,241.65,0.2]
[1758293028624,3.49313898,241.66,241.65,0.2]
[1758293028794,2.95887104,241.66,241.65,0.2]
[1758293028989,5.73201002,241.66,241.65,0.2]
[1758293029208,2.95887104,241.66,241.65,0.2]
[1758293029620,0.72,241.66,241.65,0.2]
[1758293029826,2.95887104,241.66,241.65,0.2]
[1758293030425,5.73201002,241.66,241.65,0.2]
[1758293030632,5.95088281,241.66,241.65,0.2]
[1758293031330,8.72402179,241.66,241.65,0.2]
[1758293031630,5.95088281,241.66,241.65,0.2]
[1758293031825,8.72402179,241.66,241.65,0.2]
[1758293034001,6.48515075,241.66,241.65,0.2]
[1758293034202,8.72402179,241.66,241.65,0.2]
[1758293034608,12.20045174,241.66,241.65,0.2]
[1758293034815,8.72402179,241.66,241.61,0.1]
[1758293035024,2.23887104,241.62,241.61,0.1]
[1758293035410,0.66,241.62,241.61,0.1]
[1758293035614,3.43313898,241.62,241.61,0.1]
[1758293036111,6.41405275,241.62,241.61,0.1]
[1758293037008,3.64091377,241.62,241.61,0.1]
[1758293038508,5.87978481,241.62,241.61,0.1]
[1758293039130,8.65292379,241.62,241.61,0.1]
[1758293039528,5.87978481,241.62,241.61,0.1]
[1758293039932,7.99292379,241.62,241.61,0.1]
[1758293040109,8.70292379,241.62,241.61,0.1]
[1758293040308,3.69091377,241.62,241.61,0.1]
[1758293040535,6.46405275,241.62,241.61,0.1]
[1758293040727,5.92978481,241.62,241.61,0.1]
[1758293041033,8.70292379,241.62,241.56,2.36071768]
[1758293041237,2.23887104,241.59,241.56,0.2]
[1758293041733,0.71,241.58,241.56,0.2]
[1758293042034,11.03589377,241.58,241.56,0.2]
[1758293042220,3.48313898,241.57,241.56,0.2]
[1758293042827,2.77313898,241.57,241.56,0.2]
[1758293043633,13.09903275,241.57,241.56,0.2]
[1758293044360,13.09903275,241.57,241.56,0.87]
[1758293044638,10.32589377,241.57,241.56,3.10887104]
[1758293048746,10.32589377,241.57,241.56,2.43887104]
[1758293049258,10.32589377,241.57,241.56,3.10887104]
[1758293050824,10.32589377,241.57,241.56,0.2]
[1758293051243,10.32589377,241.57,241.56,2.43887104]
[1758293052068,13.79058996,241.57,241.56,0.2]
[1758293056956,13.79328002,241.57,241.56,0.2]
[1758293057567,17.24001284,241.57,241.56,0.2]
[1758293057966,17.24001284,241.57,241.51,0.3]
[1758293057967,46.33328002,241.57,241.51,0.3]
[1758293058163,2.23887104,241.55,241.51,0.3]
[1758293058358,3.46738625,241.54,241.51,0.3]
[1758293058559,2.75738625,241.53,241.51,0.3]
[1758293058752,2.75738625,241.52,241.51,0.3]
[1758293059979,3.46738625,241.52,241.51,0.3]
[1758293060956,4.50276511,241.52,241.51,0.3]
[1758293062469,6.74163615,241.52,241.51,0.3]
[1758293063887,6.03163615,241.52,241.51,0.3]
[1758293064191,6.74163615,241.52,241.51,0.3]
[1758293064767,6.74163615,241.52,241.45,1.57034006]
[1758293064981,3.79276511,241.51,241.45,2.23887104]
[1758293065189,3.79276511,241.5,241.44,0.14216157]
[1758293065362,2.75738625,241.49,241.45,2.23887104]
[1758293065562,2.75738625,241.48,241.45,2.23887104]
[1758293065758,2.75738625,241.51,241.45,2.23887104]
[1758293065963,3.79279943,241.5,241.45,2.23887104]
[1758293066172,2.75738625,241.49,241.45,2.23887104]
[1758293066370,2.75738625,241.48,241.45,2.23887104]
[1758293066581,2.75738625,241.51,241.44,0.28432314]
[1758293066788,3.79279921,241.5,241.44,0.28432314]
[1758293066976,2.75738625,241.49,241.42,0.28432314]
[1758293067177,2.75738625,241.48,241.43,2.23887104]
[1758293067384,2.75738625,241.47,241.43,2.23887104]
[1758293067568,0.7,241.5,241.43,2.23887104]
[1758293067569,2.75738625,241.49,241.43,2.23887104]
[1758293067768,2.75738625,241.48,241.43,2.23887104]
[1758293067980,2.75738625,241.47,241.43,2.23887104]
[1758293068177,2.75738625,241.47,241.41,32.40398009]
[1758293068178,3.46357934,241.46,241.41,2.26171173]
[1758293068387,2.76357934,241.45,241.42,0.28432314]
[1758293068587,2.76357934,241.44,241.41,0.1]
[1758293068888,2.76310266,241.45,241.41,0.24216157]
[1758293069087,2.76310266,241.44,241.41,0.24216157]
[1758293069388,2.76310266,241.45,241.41,0.24216157]
[1758293069592,0.7,241.43,241.41,0.24216157]
[1758293069969,0.7,241.42,241.41,0.1]
[1758293070488,2.76310266,241.44,241.41,0.1]
[1758293070885,0.7,241.43,241.41,0.1]
[1758293071389,2.76310266,241.45,241.41,0.1]
[1758293071390,0.7,241.42,241.41,0.1]
[1758293074498,3.46310266,241.42,241.41,0.1]
[1758293076289,5.7019737,241.42,241.41,0.1]
[1758293079176,3.46310266,241.42,241.41,0.1]
[1758293079491,5.7019737,241.42,241.41,0.1]
[1758293079885,7.86439986,241.42,241.41,0.1]
[1758293081387,40.24439986,241.42,241.41,0.1]
[1758293082104,38.00552882,241.42,241.41,0.1]
[1758293082275,40.24439986,241.42,241.41,0.1]
[1758293083191,7.86439986,241.42,241.41,0.1]
[1758293083401,5.62552882,241.42,241.41,0.1]
[1758293083601,38.1019737,241.42,241.41,0.1]
[1758293083811,3.46310266,241.42,241.41,0.1]
[1758293083985,28.76310266,241.42,241.41,0.1]
[1758293084192,2.76310266,241.42,241.41,0.51]
[1758293084507,4.4221997,241.43,241.41,0.1]
[1758293084806,2.76310266,241.44,241.41,0.1]
[1758293087003,2.76310266,241.44,241.41,2.33887104]
[1758293087175,2.76310266,241.45,241.41,2.33887104]
[1758293087883,3.46310266,241.45,241.41,1.53491076]
[1758293088105,0.7,241.45,241.41,1.53491076]
[1758293088280,0.7,241.45,241.41,0.1]
[1758293089090,2.76310266,241.46,241.41,0.1]
[1758293089290,3.46310266,241.46,241.41,0.1]
[1758293089977,0.7,241.45,241.41,0.1]
[1758293090607,0.7,241.44,241.41,0.1]
[1758293091108,0.7,241.43,241.41,0.1]
[1758293092006,4.19801342,241.46,241.41,0.1]
[1758293092007,0.7,241.42,241.41,0.1]
[1758293092506,0.7,241.44,241.41,0.1]
[1758293092706,0.7,241.43,241.41,0.1]
[1758293093401,0.7,241.45,241.41,0.1]
[1758293093600,2.76310266,241.46,241.41,0.1]
[1758293093810,0.7,241.44,241.41,0.1]
[1758293096002,2.76310266,241.45,241.42,1.43491076]
[1758293096382,3.46310266,241.45,241.41,1.53491076]
[1758293096581,3.46310266,241.45,241.41,0.1]
[1758293097684,0.7,241.45,241.41,0.1]
[1758293098018,0.7,241.45,241.41,1.53491076]
[1758293098504,2.76310266,241.46,241.43,1.43491076]
[1758293098885,3.44310266,241.46,241.43,1.43491076]
[1758293099413,2.76310266,241.46,241.42,1.43491076]
[1758293099628,0.68,241.45,241.42,1.43491076]
[1758293100313,3.44310266,241.45,241.42,1.43491076]
[1758293100520,135.74132187,241.47,241.41,0.1]
[1758293100521,2.76310266,241.46,241.43,0.41]
[1758293100700,2.76310266,241.46,241.44,1.43491076]
[1758293101297,2.76310266,241.46,241.43,1.43491076]
[1758293101490,3.44310266,241.46,241.41,0.1]
[1758293101696,3.44310266,241.45,241.41,0.1]
[1758293102010,27.43491076,241.42,241.41,0.1]
[1758293102323,30.19801342,241.42,241.41,0.1]
[1758293102531,30.87801342,241.42,241.41,0.1]
[1758293103295,2.76310266,241.42,241.41,0.1]
[1758293103502,2.76310266,241.43,241.41,0.1]
[1758293105210,2.76310266,241.43,241.41,1.53491076]
[1758293105401,2.76310266,241.43,241.42,0.28432314]
[1758293105602,2.76469861,241.46,241.42,1.57707233]
[1758293105930,2.76469861,241.45,241.42,1.7192339]
[1758293106105,2.76469861,241.46,241.42,1.7192339]
[1758293106313,2.76469861,241.45,241.42,1.7192339]
[1758293106620,4.42132187,241.47,241.44,1.43491076]
[1758293106809,2.76487532,241.46,241.44,1.43491076]
[1758293107008,2.76487532,241.45,241.44,1.43491076]
[1758293108522,2.76487532,241.45,241.44,1.84491076]
[1758293108723,2.76487532,241.46,241.45,0.28432314]
[1758293108896,3.74132187,241.47,241.45,6.27080284]
[1758293109298,3.74132187,241.47,241.46,1.43491076]
[1758293111325,3.74132187,241.47,241.46,2.1292339]
[1758293112939,3.74132187,241.47,241.46,6.2707066]
[1758293113102,3.74132187,241.47,241.46,19.86630061]
[1758293115511,3.74132187,241.47,241.46,18.43138985]
[1758293115806,3.74132187,241.47,241.46,19.86630061]
[1758293116020,0.68,241.56,241.47,13.87991715]
[1758293116347,0.68,241.55,241.5,0.28432314]
[1758293116516,2.76438888,241.57,241.53,1.43491076]
[1758293116716,3.44725233,241.62,241.5,0.28432314]
[1758293116717,0.68,241.56,241.55,1.43491076]
[1758293117821,2.76438888,241.59,241.55,1.43491076]
[1758293118025,0.68,241.58,241.56,1.43491076]
[1758293118443,0.68,241.57,241.56,1.43491076]
[1758293119737,0.68,241.59,241.56,1.43491076]
[1758293119964,0.68,241.58,241.56,1.43491076]
[1758293120448,2.76438888,241.61,241.56,1.43491076]
[1758293120751,0.68,241.6,241.59,1.43491076]
[1758293121258,0.68,241.63,241.59,1.43491076]
[1758293121420,0.68,241.63,241.62,1.43491076]
[1758293121741,0.68,241.64,241.62,1.43491076]
[1758293122036,1.01540005,241.66,241.62,1.43491076]
[1758293122240,0.68,241.65,241.63,1.43491076]
[1758293122639,0.68,241.64,241.63,1.43491076]
[1758293122941,0.68,241.64,241.62,1.43491076]
[1758293123157,1.69540005,241.66,241.63,1.43491076]
[1758293123317,1.01540005,241.66,241.65,1.43491076]
[1758293125661,0.78,241.69,241.65,1.43491076]
[1758293125957,0.82,241.69,241.66,1.43491076]
[1758293126146,0.72,241.68,241.65,1.7192339]
[1758293126354,0.72,241.67,241.65,1.7192339]
[1758293126567,0.72,241.66,241.65,0.28432314]
[1758293126939,0.72,241.66,241.61,13.59559401]
[1758293127137,0.72,241.65,241.57,26.0]
[1758293127345,0.72,241.64,241.58,1.43491076]
[1758293127555,0.72,241.63,241.58,13.59559401]
[1758293127753,0.72,241.62,241.59,0.28432314]
[1758293128364,0.72,241.62,241.59,1.7192339]
[1758293128858,1.43491076,241.66,241.59,1.57707233]
[1758293129049,0.72,241.61,241.6,0.14216157]
[1758293129254,0.72,241.63,241.6,0.14216157]
[1758293129645,0.72,241.62,241.6,0.14216157]
[1758293130048,0.72,241.62,241.58,32.26]
[1758293130244,0.72,241.61,241.55,1.43491076]
[1758293130564,0.72,241.6,241.56,32.26]
[1758293130752,0.72,241.59,241.56,32.26]
[1758293130931,0.72,241.58,241.56,32.26]
[1758293131537,0.72,241.57,241.56,0.28432314]
[1758293132054,0.72,241.57,241.54,32.52432314]
[1758293133060,0.72,241.6,241.55,1.43491076]
[1758293133250,0.72,241.6,241.57,1.43491076]
[1758293134258,2.74850217,241.63,241.57,1.43491076]
[1758293134454,0.72,241.59,241.51,0.28432314]
[1758293134675,0.72,241.59,241.54,1.43491076]
[1758293134857,0.72,241.58,241.53,1.7192339]
[1758293135067,0.72,241.57,241.53,1.7192339]
[1758293135365,1.43491076,241.62,241.53,1.7192339]
[1758293135662,0.72,241.61,241.54,33.65491076]
[1758293135865,0.72,241.6,241.54,32.22]
[1758293136065,0.72,241.59,241.54,33.65491076]
[1758293136371,0.72,241.58,241.54,1.43491076]
[1758293136555,0.72,241.57,241.54,33.65491076]
[1758293136761,0.72,241.56,241.54,32.22]
[1758293136960,0.72,241.55,241.54,32.22]
[1758293137163,1.43491076,241.6,241.54,32.22]
[1758293137346,0.72,241.57,241.54,32.22]
[1758293138243,26.72,241.61,241.55,0.28432314]
[1758293138446,2.74737915,241.6,241.56,1.43491076]
[1758293138751,0.72,241.6,241.56,1.43491076]
[1758293139368,2.74737915,241.62,241.56,1.43491076]
[1758293139558,0.72,241.62,241.58,1.43491076]
[1758293139759,2.74737915,241.63,241.6,1.43491076]
[1758293139961,0.72,241.63,241.6,1.43491076]
[1758293140260,0.72,241.63,241.6,1.7192339]
[1758293140660,2.74737915,241.67,241.6,1.7192339]
[1758293140970,2.74737915,241.67,241.64,1.43491076]